Cogmind - Beta 11.1 @@@ ROGUE MODE // 2022.05.28 @ 12:55:15 Player: Pogmind Result: Destroyed by 12-ASH with 12-ASH's Boomstick Performance ------------- Evolutions (1) 500 Regions Visited (6) 1200 Robots Destroyed (81) 405 Value Destroyed (2119) 2119 Prototype IDs (31) 620 Alien Tech Used (0) 0 Bonus (468) 468 TOTAL SCORE: 5312 Bonus ------- Follower Combat Kills 168 Aligned with FarCom 300 Cogmind --------- Core Integrity 0/400 Matter 203/300 Energy 212/265 System Corruption 3% Temperature Hot (220) Movement Treading (320) Ox2 Location -8/Mines Parts ------- > --- POWER (1) -------- Reinforced Ion Engine > --- PROPULSION (2) --- Light Treads Light Treads > --- UTILITY (4) ------ Huge Storage Unit Hardened Light Armor Plating Hardened Light Armor Plating Improved Light Armor Plating > --- WEAPON (2) ------- Assault Cannon Assault Cannon > --- INVENTORY (25) --- Light Treads Light Treads Light Treads Light Treads Light Treads Compact Wheel Compact Wheel High-capacity Storage Unit High-capacity Battery (250) Experimental Sensor Array Weapon Shielding Hacking Suite Hacking Suite High-powered Tractor Beam Improved EM Shotgun Improved EM Shotgun Heavy Assault Rifle Gauss Rifle Assault Cannon Assault Cannon Rocket Launcher Field Lobotomy Kit (5) Plasma Cutter Makeshift Hammer Peak State ------------ > --- POWER ------------ Reinforced Ion Engine > --- PROPULSION ------- Light Treads Light Treads > --- UTILITY ---------- Huge Storage Unit Experimental Sensor Array Hardened Light Armor Plating Improved Light Armor Plating > --- WEAPON ----------- Assault Cannon Assault Cannon > --- INVENTORY -------- Reinforced Ion Engine Light Treads Light Treads Light Treads Light Treads Light Treads Compact Wheel Compact Wheel High-capacity Storage Unit Large Battery Seismic Detector Hardened Light Armor Plating Hacking Suite Hacking Suite High-powered Tractor Beam Improved EM Shotgun Improved EM Shotgun Assault Cannon Assault Cannon Rocket Launcher Makeshift Hammer [Rating: 29] Favorites ----------- Power Reinforced Ion Engine Engine Reinforced Ion Engine Propulsion Light Treads Treads Light Treads Wheel Compact Wheel Flight Unit Improved Flight Unit Utility Heat Sink Device Heat Sink Storage Huge Storage Unit Processor Targeting Computer Protection Hardened Light Armor Plating Weapon Assault Cannon Energy Gun Medium Laser Energy Cannon Advanced Beam Cannon Ballistic Gun Assault Rifle Ballistic Cannon Assault Cannon Launcher Grenade Launcher Special Weapon Field Lobotomy Kit Impact Weapon Heavy Hammer Slashing Weapon Blade Saw Build | -11 -10 -10 -9 -9 -9 -8 ------- Run | Scr Mat Min Mat Min Exi Min Slots Evolved 2 | . . . 2 . . . Power . | . . . . . . . Propulsion . | . . . . . . . Utility 2 | . . . 2 . . . Weapon . | . . . . . . . Parts Attached 112 | 8 8 7 47 28 11 3 Power 13 | 1 . 2 9 . . 1 Engine 13 | 1 . 2 9 . . 1 Core . | . . . . . . . Reactor . | . . . . . . . Propulsion 22 | 2 . . 10 2 6 2 Treads 17 | 2 . . 9 2 2 2 Leg . | . . . . . . . Wheel 4 | . . . . . 4 . Hover . | . . . . . . . Flight 1 | . . . 1 . . . Utility 31 | 1 5 1 11 11 2 . Device 10 | . . 1 7 2 . . Storage 7 | 1 4 . 2 . . . Processor 1 | . . . 1 . . . Hackware . | . . . . . . . Protection 13 | . 1 . 1 9 2 . Artifact . | . . . . . . . Weapon 46 | 4 3 4 17 15 3 . Energy Gun 14 | 3 1 1 4 5 . . Energy Cannon 4 | . . . 4 . . . Ballistic Gun 4 | 1 . 2 1 . . . Ballistic Cannon 11 | . . . 4 5 2 . Launcher 4 | . 1 1 . 2 . . Special Weapon 2 | . . . . 1 1 . Impact Weapon 4 | . . . 2 2 . . Slashing Weapon 3 | . 1 . 2 . . . Piercing Weapon . | . . . . . . . Special Melee Weapon . | . . . . . . . Unidentified Prototypes 8 | . . . 7 1 . . Parts Lost 19 | . . 2 8 8 . 1 Power 2 | . . . 1 . . 1 Propulsion 6 | . . . 4 2 . . Utility 7 | . . 1 1 5 . . Weapon 4 | . . 1 2 1 . . Highest Loss Streak 8 | . . 2 3 8 . 1 To Critical Strikes . | . . . . . . . Average Slot Usage (%) 96 | . 96 99 98 99 78 100 Engine 11 | . 14 14 10 11 11 11 Treads 22 | . 28 28 21 22 11 22 Wheel 1 | . . . . . 10 . Device 10 | . . 13 18 5 . . Storage 11 | . 14 14 11 11 11 11 Processor 4 | . . . 8 5 . . Protection 11 | . 11 . 4 21 33 33 Energy Gun 7 | . 13 27 2 1 . . Energy Cannon 3 | . . . 10 . . . Ballistic Gun 2 | . 13 . . . . . Ballistic Cannon 6 | . . . 7 20 1 22 Naked Turns . | . . . . . . . Heaviest Build 113 | 14 89 52 104 113 113 113 Greatest Support 40 | 40 40 40 40 40 40 40 Greatest Overweight (x) 7 | . 2 1 4 2 7 2 Average Overweight (x) 1 | . . 1 1 2 2 2 Largest Inventory Capacity 25 | 8 25 20 25 25 25 25 Average Capacity 23 | 6 19 20 24 25 25 25 Most Carried 25 | 4 16 19 25 25 25 25 Average Carried 21 | 1 12 18 24 22 24 24 Final Capacity 25 | 8 20 20 25 25 25 25 Final Carried 25 | 4 16 19 25 24 24 24 Class Distribution -------------------- 55% | Mutant 44% | Scavenger-Mutant Dominant Class ---------------- Mutant | -10/Materials Mutant | -10/Mines Scavenger-Mutant | -9/Materials Mutant | -9/Mines Mutant | -9/Exiles Mutant | -8/Mines Resources | -11 -10 -10 -9 -9 -9 -8 ----------- Run | Scr Mat Min Mat Min Exi Min Matter Collected 2058 | 204 298 144 694 511 . 207 Remotely . | . . . . . . . Salvage Created 3093 | . 417 412 1921 243 . 100 Parts 183 | . 30 14 120 14 . 5 Haulers Intercepted 6 | . 2 . 4 . . . Recyclers Shooed 6 | . 3 1 2 . . . Parts Field Recycled . | . . . . . . . Retrieved Matter . | . . . . . . . Parts Self-Destructed . | . . . . . . . Prevented . | . . . . . . . Kills | -11 -10 -10 -9 -9 -9 -8 ------- Run | Scr Mat Min Mat Min Exi Min Combat Hostiles Destroyed 75 | . 9 8 32 25 . 1 Melee 1 | . 1 . . . . . Guns 25 | . 6 8 9 2 . . Cannons 26 | . . . 23 2 . 1 AOE 23 | . 2 . . 21 . . Classes Destroyed 13 | . 6 . 2 4 . 1 Worker 1 | . . . . 1 . . Builder 1 | . 1 . . . . . Tunneler 1 | . . . . 1 . . Hauler 6 | . 2 . 4 . . . Recycler 8 | . 1 1 5 . . 1 Operator 3 | . . . 3 . . . Watcher 5 | . 2 . 3 . . . Swarmer 12 | . 5 . 3 4 . . Grunt 32 | . 4 8 20 . . . Sentry 9 | . . . 9 . . . Demolisher 2 | . . . . 2 . . Hunter 1 | . . . . . . 1 Assembled 19 | . . . . 19 . . Best Kill Streak 17 | . 4 4 4 17 . 1 Combat Bots Only 17 | . 3 4 3 17 . 1 Max Kills in Single Turn 4 | . 1 1 1 4 . 1 Gunslinging . | . . . . . . . Exploded 4 | . 1 . . 4 . . Melee 1 | . 1 . . . . . Uniques/NPCs Destroyed . | . . . . . . . Combat | -11 -10 -10 -9 -9 -9 -8 -------- Run | Scr Mat Min Mat Min Exi Min Damage Taken 3400 | . 477 325 976 1414 . 208 Core 546 | . 85 46 115 257 . 43 Absorbed by Shields . | . . . . . . . Core Remaining (%) 73 | 100 . 47 . . . . Volleys Fired 198 | . 51 26 88 26 1 6 Largest 2 | . 2 2 2 2 2 2 Hottest 136 | . 70 100 136 90 88 88 Shots Fired 377 | . 95 52 174 42 2 12 Gun 202 | . 88 52 44 18 . . Cannon 156 | . . . 130 12 2 12 Launcher 19 | . 7 . . 12 . . Special . | . . . . . . . Kinetic 112 | . 44 10 32 12 2 12 Thermal 228 | . 44 42 142 . . . Explosive 19 | . 7 . . 12 . . Electromagnetic 18 | . . . . 18 . . Robot Hit Streak 33 | . 8 13 33 6 . 2 Robot Miss Streak 5 | . 5 2 3 3 . 5 Penetration Max . | . . . . . . . Secondary Targets 2 | . . . 1 1 . . Max Gunslinging Chain 1 | . . . 1 1 . . Shots Hit Robots 261 | . 55 42 131 30 . 3 Core Hits 150 | . 24 21 51 51 . 3 Critical Kills 2 | . . 1 1 . . . Critical Parts Destroyed . | . . . . . . . Critical Strikes 8 | . 3 4 1 . . . Burn 6 | . 3 3 . . . . Meltdown 1 | . . . 1 . . . Destroy 1 | . . 1 . . . . Melee Attacks 20 | . 3 . 17 . . . Impact 2 | . . . 2 . . . Slashing 18 | . 3 . 15 . . . Piercing . | . . . . . . . Sneak Attacks 10 | . . . 10 . . . Combat Hostiles . | . . . . . . . Follow-up Attacks . | . . . . . . . Damage Inflicted 6443 | . 885 561 3043 1863 . 91 Guns 2028 | . 712 543 582 191 . . Cannons 2193 | . . . 1958 171 . 64 Explosions 1641 | . 161 . . 1480 . . Melee 422 | . . . 422 . . . Ramming 159 | . 12 18 81 21 . 27 Kinetic 1134 | . 343 115 441 171 . 64 Thermal 2935 | . 369 428 2099 39 . . Explosive 1602 | . 161 . . 1441 . . Electromagnetic 191 | . . . . 191 . . Impact . | . . . . . . . Slashing 422 | . . . 422 . . . Piercing . | . . . . . . . Highest Corruption 3 | . . . 3 3 3 3 Average Corruption 3 | . . . 3 3 3 3 Corruption Purged . | . . . . . . . Corruption Blocked . | . . . . . . . Effects 136 | . . . 59 46 30 1 Message Errors 39 | . . . 13 18 8 . Matter Fused 38 | . . . 19 11 8 . Heat Flow Errors 12 | . . . 9 1 2 . Energy Discharges 13 | . . . 5 5 3 . Parts Rejected 2 | . . . . 2 . . Data Loss (minor) 20 | . . . 9 6 4 1 Data Loss (major) 6 | . . . 2 1 3 . Misfires 4 | . . . 2 2 . . Alerts 2 | . . . . . 2 . Overload Shots . | . . . . . . . Overflow Damage 129 | . 3 . 80 46 . . Projectiles . | . . . . . . . Explosions 49 | . 3 . . 46 . . Melee 80 | . . . 80 . . . Knockbacks 6 | . . . 4 . . 2 Impact . | . . . . . . . Kinetic 6 | . . . 4 . . 2 Secondary . | . . . . . . . Self-Inflicted Damage 65 | . . . . 65 . . Shots 3 | . . . . 3 . . Rammed 21 | . 2 3 11 3 . 2 Targets Rammed 23 | . 3 4 11 3 . 2 Kicked . | . . . . . . . Crushed 2 | . 1 1 . . . . Highest Temperature 438 | . 318 151 273 438 195 220 Average Temperature 75 | . 67 57 56 127 75 82 Received Heat Transfer 803 | . 165 201 417 20 . . Effects 4 | . . . . 4 . . Shutdowns 1 | . . . . 1 . . Interference 2 | . . . . 2 . . Damage (minor) 1 | . . . . 1 . . Siege Activations . | . . . . . . . Robots Corrupted . | . . . . . . . Combat Hostiles . | . . . . . . . Parts Fried . | . . . . . . . Impact Corruptions . | . . . . . . . Robots Melted 1 | . . . 1 . . . Combat Hostiles . | . . . . . . . Parts Melted 14 | . 4 4 6 . . . Heat Transferred 6599 | . 1295 1443 3811 50 . . Parts Sabotaged . | . . . . . . . Parts Stolen . | . . . . . . . Parts Stripped . | . . . . . . . Power Chain Reactions 1 | . . . . 1 . . Missiles Intercepted . | . . . . . . . Alert | -11 -10 -10 -9 -9 -9 -8 ------- Run | Scr Mat Min Mat Min Exi Min Peak Influence 348 | . 244 178 348 274 . 36 Initial 61 | . . 48 . 61 . . Average 92 | . 93 33 127 72 . 28 Maximum Alert Level 1 | . 1 . 1 1 . . Low Security (%) 90 | 100 93 100 83 92 . 100 Level 1 9 | . 6 . 16 7 . . Level 2 . | . . . . . . . Level 3 . | . . . . . . . Level 4 . | . . . . . . . Level 5 . | . . . . . . . High Security . | . . . . . . . Max Security . | . . . . . . . Squads Dispatched 5 | . 1 . 4 . . . Investigation 3 | . 1 . 2 . . . Extermination . | . . . . . . . Reinforcement 2 | . . . 2 . . . Assault . | . . . . . . . Garrison . | . . . . . . . Intercept . | . . . . . . . Searches Triggered . | . . . . . . . Construction Impeded . | . . . . . . . Haulers Reinforced . | . . . . . . . Active Scanning Responses . | . . . . . . . Cargo Convoy Interrupts . | . . . . . . . Stealth | -11 -10 -10 -9 -9 -9 -8 --------- Run | Scr Mat Min Mat Min Exi Min Distress Signals 4 | . . . 3 . . 1 Communications Jammed . | . . . . . . . Distress Signals . | . . . . . . . Times Spotted 102 | . 25 8 48 17 1 3 Peak Tracking Total 12 | . 3 2 3 12 9 2 Tactical Retreats 3 | . 2 . 1 . . . Traps | -11 -10 -10 -9 -9 -9 -8 ------- Run | Scr Mat Min Mat Min Exi Min Traps Triggered . | . . . . . . . Indirectly . | . . . . . . . Trap Hack Attempts . | . . . . . . . Triggered . | . . . . . . . Disarmed . | . . . . . . . Reprogrammed . | . . . . . . . Reused . | . . . . . . . Traps Extracted . | . . . . . . . Installed . | . . . . . . . Triggered . | . . . . . . . Machines | -11 -10 -10 -9 -9 -9 -8 ---------- Run | Scr Mat Min Mat Min Exi Min Machines Disabled 5 | . . . 3 1 1 . Max in Single Turn 1 | . . . 1 1 1 . Machines Sabotaged . | . . . . . . . Garrisons Compromised . | . . . . . . . Overloaded Fab Kills . | . . . . . . . Hacking | -11 -10 -10 -9 -9 -9 -8 --------- Run | Scr Mat Min Mat Min Exi Min Machines Accessed 23 | . 7 1 11 2 2 . Terminals 17 | . 6 1 8 2 . . Fabricators . | . . . . . . . Repair Stations . | . . . . . . . Recycling Units 3 | . 1 . 2 . . . Scanalyzers 1 | . . . 1 . . . Garrison Access . | . . . . . . . Total Hacks 87 | . 19 3 36 5 24 . Successful 54 | . 10 . 19 1 24 . Failed 32 | . 9 3 16 4 . . Catastrophic 6 | . 1 . 3 2 . . Database Lockouts 1 | . . . 1 . . . Manual 53 | . 14 3 29 6 1 . Terminals 58 | . 17 3 33 5 . . Fabricators . | . . . . . . . Repair Stations . | . . . . . . . Recycling Units 4 | . 2 . 2 . . . Scanalyzers 1 | . . . 1 . . . Garrison Access . | . . . . . . . Terminal Hacks 45 | . 6 . 14 1 24 . Record 23 | . . . . . 23 . Robot Analysis 4 | . 2 . 1 1 . . Branch Access Points 1 | . . . 1 . . . Unreport Threat 5 | . 1 . 4 . . . Locate Traps 10 | . 3 . 7 . . . Hauler Manifests 1 | . . . 1 . . . EX-Prototype ID Bank 1 | . . . . . 1 . Fabricator Hacks . | . . . . . . . Repair Station Hacks . | . . . . . . . Recycling Unit Hacks . | . . . . . . . Scanalyzer . | . . . . . . . Garrison Access Hacks . | . . . . . . . Unauthorized Hacks 9 | . 4 . 5 . . . Terminals 6 | . 3 . 3 . . . Botnet 5 | . 3 . 2 . . . Operators 1 | . . . 1 . . . Fabricators . | . . . . . . . Repair Stations . | . . . . . . . Recycling Units 3 | . 1 . 2 . . . Tunnel 3 | . 1 . 2 . . . Scanalyzers . | . . . . . . . Garrison Access . | . . . . . . . Data Cores Recovered . | . . . . . . . Used . | . . . . . . . Hacking Detections 18 | . 6 1 9 2 . . Full Trace Events . | . . . . . . . Feedback Events . | . . . . . . . Feedback Blocked . | . . . . . . . Robot Schematics Acquired . | . . . . . . . Robots Built . | . . . . . . . Authchips . | . . . . . . . Time . | . . . . . . . Total Robot Build Rating . | . . . . . . . Part Schematics Acquired . | . . . . . . . Parts Built . | . . . . . . . Authchips . | . . . . . . . Time . | . . . . . . . Total Part Build Rating . | . . . . . . . Parts Repaired . | . . . . . . . Time . | . . . . . . . Parts Recycled . | . . . . . . . Recycled Matter . | . . . . . . . Retrieved Matter . | . . . . . . . Retrieved Components . | . . . . . . . Parts Scanalyzed . | . . . . . . . Part Schematics Acquired . | . . . . . . . Parts Damaged . | . . . . . . . Bothacking | -11 -10 -10 -9 -9 -9 -8 ------------ Run | Scr Mat Min Mat Min Exi Min Used RIF Installer . | . . . . . . . Robots Hacked . | . . . . . . . Non-combat . | . . . . . . . Combat . | . . . . . . . Robot Hacks Applied . | . . . . . . . Relay Couplers Released . | . . . . . . . Fabnet Peak Effective % . | . . . . . . . Robots Rewired . | . . . . . . . Allies Hacked . | . . . . . . . Hacks Repelled . | . . . . . . . Allies | -11 -10 -10 -9 -9 -9 -8 -------- Run | Scr Mat Min Mat Min Exi Min Total Allies 4 | . . 4 . . . . Largest Group 3 | . . 3 3 . . . Highest-Rated Group 40 | . . 40 40 . . . Highest-Rated Ally 31 | . . 31 16 . . . Total Orders . | . . . . . . . Ally Attacks 40 | . . . 40 . . . Total Damage 455 | . . . 455 . . . Kills 9 | . . . 9 . . . Allies Corrupted . | . . . . . . . Allies Melted . | . . . . . . . Intel | -11 -10 -10 -9 -9 -9 -8 ------- Run | Scr Mat Min Mat Min Exi Min Robot Analysis Total 4 | . 2 . 1 1 . . Derelict Logs Recovered 4 | . . 2 . 2 . . Drone Launches . | . . . . . . . Drone Recoveries . | . . . . . . . Exploration | -11 -10 -10 -9 -9 -9 -8 ------------- Run | Scr Mat Min Mat Min Exi Min Turns Passed 13842 | 95 2236 2290 5378 2205 1559 79 Spaces Moved 4681 | 54 855 911 1442 650 754 15 Core 5 | 5 . . . . . . Treads 4175 | 49 855 911 1442 650 253 15 Legs . | . . . . . . . Wheels 501 | . . . . . 501 . Hover . | . . . . . . . Flight . | . . . . . . . Fastest Speed 50 | 50 160 240 240 320 145 320 Average Speed 267 | 149 234 240 318 320 204 320 Slowest Speed 480 | 160 320 240 480 320 320 320 Overloaded Moves . | . . . . . . . Propulsion Burnouts . | . . . . . . . Robots Hopped . | . . . . . . . Cave-ins Triggered . | . . . . . . . Exploration Rate (%) 66 | 3 98 99 93 96 72 4 Regions Visited 6 Branch Regions 4 Pre-discovered Areas 7 | . 1 . 2 3 1 . Known Exits Taken 1 | . . . 1 . . . Unknown Exits Taken 5 | 1 1 1 . 1 1 . Scrap Searched 2 | . . 1 . 1 . . Spaces Dug 7 | . 1 . 2 4 . . Terrain Destroyed 143 | . 49 . 4 83 . 7 Melee 3 | . 1 . 2 . . . Projectile 13 | . . . 2 4 . 7 AOE 127 | . 48 . . 79 . . Terrain Rammed . | . . . . . . . Walls Destroyed . | . . . . . . . Machines Disabled . | . . . . . . . Actions | -11 -10 -10 -9 -9 -9 -8 --------- Run | Scr Mat Min Mat Min Exi Min Total 5543 | 65 979 955 2016 726 772 30 Wait 363 | . 44 5 302 9 . 3 Move 4675 | 53 854 910 1441 649 753 15 Hop . | . . . . . . . Pick Up 72 | 3 12 3 47 4 2 1 Fast Attach 38 | 7 2 1 20 6 2 . Attach 29 | . 1 1 15 10 1 1 Detach 18 | 1 2 . 8 6 1 . Swap 45 | 1 5 5 12 12 8 2 Drop 62 | . 2 . 55 1 4 . Fire 198 | . 51 26 88 26 1 6 Melee 20 | . 3 . 17 . . . Ram . | . . . . . . . Kick . | . . . . . . . Crush 23 | . 3 4 11 3 . 2 Escape Stasis . | . . . . . . . Rewire . | . . . . . . . Trap . | . . . . . . . Miscellaneous . | . . . . . . . Route ------- -11/Scrapyard -10/Materials (discovered 5 exits: *Mat x3 / *Min x2) -10/Mines (discovered 2 exits: *Mat x2) -9/Materials (discovered 7 exits: *Mat x3 / *Min x2 / *Sto x2) -9/Mines (discovered 4 exits: *Mat x2 / *Exi / [*Zio]) -9/Exiles (discovered 2 exits: [*Min x2]) -8/Mines History --------- Turn | Location | Event 9 | -11/Scrapyard | Discovered new exit (range 16) 96 | -11/Scrapyard | Entered Materials 325 | -10/Materials | Build established: Mutant 574 | -10/Materials | Discovered new exit (range 6) 819 | -10/Materials | Discovered new exit (range 7) 897 | -10/Materials | Discovered new exit (range 7) 1690 | -10/Materials | Discovered new exit (range 5) 1704 | -10/Materials | Discovered new exit (range 15) 2332 | -10/Materials | Entered Mines 2751 | -10/Mines | Core integrity fell below 50% 2759 | -10/Mines | Discovered new exit (range 5) 2761 | -10/Mines | Learned Materials emergency access door positions 3135 | -10/Mines | Discovered new exit (range 8) 3657 | -10/Mines | Received a Mining Laser from a helpful Derelict 3783 | -10/Mines | Received a Rocket Launcher from a helpful Derelict 3957 | -10/Mines | Learned 8 Materials zone layouts 4348 | -10/Mines | Assisted by bots powering up and referring to "LRC-V3" 4622 | -10/Mines | Entered Materials 4622 | -9/Materials | Accompanied by 3 allies 4622 | -9/Materials | Evolved 2 slots: Utility x2 4623 | -9/Materials | Identified exit to Materials 4623 | -9/Materials | Identified exit to Mines 4623 | -9/Materials | Identified exit to Storage 5247 | -9/Materials | Build established: Scavenger-Mutant 6299 | -9/Materials | Central database locked down 6341 | -9/Materials | Discovered exit to Materials (range 5) 6574 | -9/Materials | Lost 3 parts (1n2w) 10000 | -9/Materials | Entered Mines 10071 | -9/Mines | Discovered exit to Materials (range 7) 10225 | -9/Mines | A Derelict revealed a hidden shortcut to a safe place 10429 | -9/Mines | A weapon hastily lodged in a ceiling crevice suddenly fell to the ground 10599 | -9/Mines | Learned location of Storage (-9) 11023 | -9/Mines | Assembled infested the area 11072 | -9/Mines | Destroyed 17 combat bots 11085 | -9/Mines | Core integrity fell below 50% 11138 | -9/Mines | Lost 8 parts (2n5u1w) 11315 | -9/Mines | Core integrity fell below 20% 11389 | -9/Mines | Build established: Mutant 11422 | -9/Mines | Discovered exit to Materials (range 12) 11543 | -9/Mines | Found a damaged Exp. Sensor Array with a note attached 11550 | -9/Mines | Found Prototype Device 11550 | -9/Mines | Identified Exp. Sensor Array 12193 | -9/Mines | Deemed a non-threat by the Exiles lab entrance 12193 | -9/Mines | Discovered new exit (range 5) 12205 | -9/Mines | Entered Exiles 12283 | -9/Exiles | Met 8R-AWN 12311 | -9/Exiles | Met EX-HEX 12357 | -9/Exiles | Met EX-BIN 12381 | -9/Exiles | Aligned with FarCom system 12382 | -9/Exiles | Given EX-Vault access code 12418 | -9/Exiles | Opened EX-Vault 12425 | -9/Exiles | Found Field Lobotomy Kit 12458 | -9/Exiles | Warned to stay clear of 0b10 Research branches 12500 | -9/Exiles | Met EX-DEC 12673 | -9/Exiles | Discovered new exit (range 15) 12910 | -9/Exiles | Learned location of Zion (-7) 13739 | -9/Exiles | Discovered new exit (range 15) 13750 | -9/Exiles | Attacked by the Exiles 13764 | -9/Exiles | Left Exiles lab with Field Lobotomy Kit 13764 | -9/Exiles | Entered Mines 13830 | -8/Mines | 12-ASH came to Exiles' defense 13843 | -8/Mines | Destroyed by 12-ASH with 12-ASH's Boomstick Last Messages --------------- 13783_ Acquired 39 matter. 13789_ Acquired Gauss Rifle. 13790_ U-05 Engineer builds a Wall. 13792_ R-06 Scavenger collects Assault Rifle. 13794_ Slammed into R-06 Scavenger. 13800_ K-01 Serf collects debris. 13810_ System corrupted: Component data lost. 13817_ R-06 Scavenger collects Lgt. Nuclear Core. 13822_ Slammed into R-06 Scavenger. 13822_ R-06 Scavenger destroyed. 13823_ Acquired 61 matter. 13830_ 12-ASH: "I came as fast as I could... Wait, it was you!" 13830_ Rnf. Ion Engine destroyed. 13835_ K-01 Serf destroyed. 13836_ R-06 Scavenger collects Wheel. 13837_ R-06 Scavenger collects Sml. Storage Unit. 13838_ R-06 Scavenger destroyed. 13839_ K-01 Serf knocked back. 13840_ K-01 Serf sends out distress signal. 13842_ K-01 Serf destroyed. Map ----- +----------------------------------------------------+ | ??????????????????????????????????????????? | | ??????????????????????????????????????????? | | ??????????????????????????????????????????? | | ??????????????????????????????????????????? | | ??????????????????????????????????????????? | | ??????????????????????????????????????????? | | ??????????????????????????????????????????? | | ??????????????????????????????????????????? | | ??????????????????????????????????????????? | | ??????????????????????????????????????????? | | ??????????????????????????????????????????? | | ??????????????????????????????????????????? | | ??????????????????????????????????????????? | | ??????????????????????????????????????????? | | ??????????????????????????????????????????? | | ??????????????????????????????????????????? | | ??????????????????????????????????????????? | | ??????????????????????????????????????????? | | ????????????????????######????????????????? | | ???????????????????## ###??????????????? | | ???????????????????# ##??????????????? | | ???????????????????# #??????????????? | | ???????????????????## #??????????????? | | ????????????????????## !*##??????????????? | | ?????????????????????#### #???????????????? | | ????????????????????????#@#???????????????? | | ????????????????????????#%;#??????????????? | | ????????????????????????;!;#??????????????? | | ????????????????????????# ;#??????????????? | | ????????????????????????# ;;??????????????? | | ????????????????????????#%sk??????????????? | | ????????????????????????# ###?????????????? | | ????????????????????????# #???????????????? | | ????????????????????????#%#???????????????? | | ????????????????????????#g#???????????????? | | ????????????????????????#%#???????????????? | | ????????????????????????#=#???????????????? | | ?????????????????????????%????????????????? | | ?????????????????????????!????????????????? | | ?????????????????????????=????????????????? | | ????????????????????????? ????????????????? | | ?????????????????????????#????????????????? | | ??????????????????????????????????????????? | | ??????????????????????????????????????????? | | ??????????????????????????????????????????? | | ??????????????????????????????????????????? | | ??????????????????????????????????????????? | | ??????????????????????????????????????????? | | ??????????????????????????????????????????? | | ??????????????????????????????????????????? | +----------------------------------------------------+ Best States ------------- Heat Dissipation 58 Energy Generation 12 Energy Capacity 265 Matter Stores 300 Matter Capacity 300 Sight Range 16 Terrain Scan Density 10 Armor Coverage 450 Weapon Shielding 33 Evasion (%) 40 Targeting Accuracy 5 Recoil Reduction 2 Item Schematics ----------------- None Robot Schematics ------------------ None Fabricated ------------ Nothing Alien Tech Used ----------------- None Achievements -------------- None Challenges ------------ None Game ------ Seed DimensionalHugeBrace Manual? 0 Play Time 01:00:27 Cumulative 442.7 hours Start 2022.05.28 @ 00:15:38 End 2022.05.28 @ 12:55:15 Sessions 3 Manual Loads 0 Difficulty Rogue Special Mode None Game No. 37 Rogue 32 Adventurer 5 Explorer 0 Win Type - Total 19 Types 5/4/3/0/3/1/2/0/1 Lore% 78 Gallery% 88 Achievement% 80 Wizard Run 0 Options --------- ASCII 0 Keyboard 1 Movement Arrows Keybinds 0 Fullscreen 2 Font 18/SmallcapsGlow Map View 76x50 Tactical HUD 1 Map Filters NONE Filters NONE Steam 1 RUN: 7dc3c9e8-7248-4a73-a8b2-a69fc9d5d612